[Event "Titled Tuesday Blitz August 22 Early 2023"]
[White "SmirnovAlexandrA"]
[Black "Rustemov, Alexander"]
[BlackFideId "4119002"]
[WhiteElo "2654"]
[BlackElo "2863"]
[Result "0-1"]
[Round "8"]
[TimeControl "180+1"]
[Date "2023.08.22"]
[WhiteClock "0:00:05"]
[BlackClock "0:00:10"]
[Board "44"]

1. e4 {[%clk 0:02:51]}  e6 {[%clk 0:02:59]} 2. d4 {[%clk 0:02:51]}  d5 {[%clk 0:03:00]} 3. Nc3 {[%clk 0:02:52]}  dxe4 {[%clk 0:02:59]} 4. Nxe4 {[%clk 0:02:52]}  Bd7 {[%clk 0:03:00]} 5. Nf3 {[%clk 0:02:51]}  Bc6 {[%clk 0:03:00]} 6. Bd3 {[%clk 0:02:44]}  Nd7 {[%clk 0:03:01]} 7. O-O {[%clk 0:02:43]}  Ngf6 {[%clk 0:03:01]} 8. Ng3 {[%clk 0:02:35]}  Be7 {[%clk 0:03:01]} 9. b3 {[%clk 0:02:35]}  O-O {[%clk 0:03:01]} 10. Bb2 {[%clk 0:02:35]}  b6 {[%clk 0:03:01]} 11. c4 {[%clk 0:02:35]}  Bb7 {[%clk 0:03:01]} 12. Qe2 {[%clk 0:02:34]}  c5 {[%clk 0:03:02]} 13. Rad1 {[%clk 0:02:33]}  Re8 {[%clk 0:03:02]} 14. Bb1 {[%clk 0:02:30]}  Qc7 {[%clk 0:03:02]} 15. Rfe1 {[%clk 0:02:29]}  Rad8 {[%clk 0:03:01]} 16. Ne5 {[%clk 0:02:24]}  cxd4 {[%clk 0:02:56]} 17. Nxd7 {[%clk 0:02:18]}  Rxd7 {[%clk 0:02:47]} 18. Rxd4 {[%clk 0:02:17]}  Qc6 {[%clk 0:02:24]} 19. Ne4 {[%clk 0:01:43]}  Rxd4 {[%clk 0:02:11]} 20. Bxd4 {[%clk 0:01:44]}  Rd8 {[%clk 0:01:59]} 21. Bc3 {[%clk 0:01:38]}  Nxe4 {[%clk 0:01:43]} 22. Bxe4 {[%clk 0:01:38]}  Qxe4 {[%clk 0:01:42]} 23. Qxe4 {[%clk 0:01:39]}  Bxe4 {[%clk 0:01:42]} 24. Rxe4 {[%clk 0:01:40]}  Bf6 {[%clk 0:01:28]} 25. Be1 {[%clk 0:01:06]}  Rd1 {[%clk 0:01:27]} 26. Kf1 {[%clk 0:01:06]}  Bc3 {[%clk 0:01:19]} 27. f4 {[%clk 0:01:05]}  Ra1 {[%clk 0:01:11]} 28. a4 {[%clk 0:01:05]}  Rb1 {[%clk 0:01:08]} 29. Kf2 {[%clk 0:01:00]}  Bxe1+ {[%clk 0:01:07]} 30. Rxe1 {[%clk 0:00:59]}  Rxb3 {[%clk 0:01:08]} 31. c5 {[%clk 0:00:51]}  bxc5 {[%clk 0:00:59]} 32. Rc1 {[%clk 0:00:50]}  Rb4 {[%clk 0:00:59]} 33. Rxc5 {[%clk 0:00:47]}  g6 {[%clk 0:00:56]} 34. Ra5 {[%clk 0:00:42]}  Rxf4+ {[%clk 0:00:56]} 35. Kg3 {[%clk 0:00:42]}  Rb4 {[%clk 0:00:50]} 36. Rxa7 {[%clk 0:00:42]}  Kg7 {[%clk 0:00:49]} 37. a5 {[%clk 0:00:43]}  Ra4 {[%clk 0:00:49]} 38. a6 {[%clk 0:00:42]}  g5 {[%clk 0:00:49]} 39. h3 {[%clk 0:00:42]}  h5 {[%clk 0:00:49]} 40. Kf3 {[%clk 0:00:40]}  h4 {[%clk 0:00:47]} 41. Kf2 {[%clk 0:00:39]}  Kg6 {[%clk 0:00:47]} 42. Kf3 {[%clk 0:00:38]}  Ra3+ {[%clk 0:00:46]} 43. Kf2 {[%clk 0:00:38]}  Ra2+ {[%clk 0:00:29]} 44. Kf3 {[%clk 0:00:38]}  Ra4 {[%clk 0:00:29]} 45. Kf2 {[%clk 0:00:29]}  e5 {[%clk 0:00:29]} 46. Ra8 {[%clk 0:00:22]}  Kf5 {[%clk 0:00:27]} 47. a7 {[%clk 0:00:23]}  Kf4 {[%clk 0:00:23]} 48. Ke2 {[%clk 0:00:17]}  e4 {[%clk 0:00:21]} 49. Kf1 {[%clk 0:00:11]}  Ra1+ {[%clk 0:00:21]} 50. Ke2 {[%clk 0:00:11]}  Ra2+ {[%clk 0:00:21]} 51. Kf1 {[%clk 0:00:11]}  e3 {[%clk 0:00:20]} 52. Ke1 {[%clk 0:00:09]}  f5 {[%clk 0:00:18]} 53. Kf1 {[%clk 0:00:04]}  Kg3 {[%clk 0:00:17]} 54. Ke1 {[%clk 0:00:04]}  Kxg2 {[%clk 0:00:15]} 55. Rg8 {[%clk 0:00:05]}  Rxa7 {[%clk 0:00:12]} 56. Rxg5+ {[%clk 0:00:05]}  Kxh3 {[%clk 0:00:12]} 57. Rxf5 {[%clk 0:00:06]}  Kg4 {[%clk 0:00:11]} 58. Rf7 {[%clk 0:00:05]}  Rxf7 {[%clk 0:00:10]} 0-1


[Site "https://www.chess.com"]

[Event "Titled Tuesday Blitz August 22 Early 2023"]
[White "Maltsevskaya, Aleksandra"]
[Black "Galchenko, Matvey"]
[WhiteFideId "24174041"]
[BlackFideId "24175480"]
[WhiteElo "2641"]
[BlackElo "2839"]
[Result "0-1"]
[Round "8"]
[TimeControl "180+1"]
[Date "2023.08.22"]
[WhiteClock "0:00:00"]
[BlackClock "0:02:22"]
[Board "46"]

1. Nf3 {[%clk 0:00:34]}  c5 {[%clk 0:02:59]} 2. g3 {[%clk 0:00:34]}  g6 {[%clk 0:02:59]} 3. Bg2 {[%clk 0:00:35]}  Bg7 {[%clk 0:02:59]} 4. d3 {[%clk 0:00:36]}  Nc6 {[%clk 0:02:59]} 5. Nbd2 {[%clk 0:00:37]}  e6 {[%clk 0:03:00]} 6. O-O {[%clk 0:00:38]}  Nge7 {[%clk 0:03:00]} 7. e4 {[%clk 0:00:38]}  O-O {[%clk 0:03:01]} 8. Nc4 {[%clk 0:00:38]}  d5 {[%clk 0:03:00]} 9. exd5 {[%clk 0:00:39]}  exd5 {[%clk 0:03:01]} 10. Ne3 {[%clk 0:00:40]}  h6 {[%clk 0:02:59]} 11. a4 {[%clk 0:00:39]}  Be6 {[%clk 0:03:00]} 12. Re1 {[%clk 0:00:38]}  Qd7 {[%clk 0:02:59]} 13. c3 {[%clk 0:00:38]}  d4 {[%clk 0:02:56]} 14. cxd4 {[%clk 0:00:37]}  Nxd4 {[%clk 0:02:49]} 15. Nxd4 {[%clk 0:00:33]}  Bxd4 {[%clk 0:02:44]} 16. Nc4 {[%clk 0:00:31]}  Bg7 {[%clk 0:02:44]} 17. Ne5 {[%clk 0:00:14]}  Qc7 {[%clk 0:02:36]} 18. Qe2 {[%clk 0:00:11]}  Nf5 {[%clk 0:02:26]} 19. Nxg6 {[%clk 0:00:09]}  Nd4 {[%clk 0:02:25]} 20. Qd1 {[%clk 0:00:04]}  fxg6 {[%clk 0:02:25]} 21. Be3 {[%clk 0:00:00]}  Bb3 {[%clk 0:02:22]} 0-1


[Site "https://www.chess.com"]

[Event "Titled Tuesday Blitz August 22 Early 2023"]
[White "Ibadov, Dashgyn"]
[Black "Cherniaiev, Tykhon"]
[WhiteFideId "24107514"]
[BlackFideId "14182360"]
[WhiteElo "2595"]
[BlackElo "2797"]
[Result "0-1"]
[Round "8"]
[TimeControl "180+1"]
[Date "2023.08.22"]
[WhiteClock "0:00:00"]
[BlackClock "0:00:26"]
[Board "49"]

1. e4 {[%clk 0:03:00]}  e5 {[%clk 0:02:58]} 2. Nf3 {[%clk 0:03:00]}  Nc6 {[%clk 0:02:58]} 3. d4 {[%clk 0:02:49]}  exd4 {[%clk 0:02:58]} 4. Nxd4 {[%clk 0:02:50]}  Nf6 {[%clk 0:02:58]} 5. Nxc6 {[%clk 0:02:50]}  bxc6 {[%clk 0:02:59]} 6. e5 {[%clk 0:02:50]}  Nd5 {[%clk 0:02:59]} 7. c4 {[%clk 0:02:50]}  Nb6 {[%clk 0:02:54]} 8. Bd3 {[%clk 0:02:50]}  g6 {[%clk 0:02:47]} 9. O-O {[%clk 0:02:48]}  Bg7 {[%clk 0:02:47]} 10. Nc3 {[%clk 0:02:46]}  O-O {[%clk 0:02:47]} 11. Re1 {[%clk 0:02:44]}  d6 {[%clk 0:02:46]} 12. exd6 {[%clk 0:02:38]}  cxd6 {[%clk 0:02:47]} 13. Qc2 {[%clk 0:02:35]}  Be6 {[%clk 0:02:42]} 14. b3 {[%clk 0:02:35]}  d5 {[%clk 0:02:41]} 15. c5 {[%clk 0:02:29]}  Nd7 {[%clk 0:02:40]} 16. Bb2 {[%clk 0:01:45]}  Nxc5 {[%clk 0:02:38]} 17. Bf1 {[%clk 0:01:45]}  Qg5 {[%clk 0:02:23]} 18. Rad1 {[%clk 0:01:32]}  Bg4 {[%clk 0:02:04]} 19. Ne2 {[%clk 0:01:23]}  Bxb2 {[%clk 0:01:31]} 20. Qxb2 {[%clk 0:01:23]}  Rfe8 {[%clk 0:01:32]} 21. Qc2 {[%clk 0:01:22]}  Ne4 {[%clk 0:01:24]} 22. Qxc6 {[%clk 0:01:09]}  Nxf2 {[%clk 0:01:17]} 23. Rxd5 {[%clk 0:01:08]}  Qe3 {[%clk 0:01:14]} 24. Qc5 {[%clk 0:00:54]}  Qxc5 {[%clk 0:01:01]} 25. Rxc5 {[%clk 0:00:55]}  Nd3 {[%clk 0:01:01]} 26. Rc4 {[%clk 0:00:51]}  Be6 {[%clk 0:00:52]} 27. Rd1 {[%clk 0:00:43]}  Nb2 {[%clk 0:00:50]} 28. Rdc1 {[%clk 0:00:40]}  Nxc4 {[%clk 0:00:37]} 29. bxc4 {[%clk 0:00:41]}  Rac8 {[%clk 0:00:33]} 30. Nd4 {[%clk 0:00:40]}  Kg7 {[%clk 0:00:33]} 31. a4 {[%clk 0:00:30]}  Bxc4 {[%clk 0:00:25]} 32. Bxc4 {[%clk 0:00:08]}  Re4 {[%clk 0:00:26]} 33. Nb5 {[%clk 0:00:04]}  Rexc4 {[%clk 0:00:25]} 34. Rd1 {[%clk 0:00:02]}  Rc1 {[%clk 0:00:24]} 35. Rxc1 {[%clk 0:00:01]}  Rxc1+ {[%clk 0:00:25]} 36. Kf2 {[%clk 0:00:01]}  a6 {[%clk 0:00:26]} 37. Nd4 {[%clk 0:00:00]}  Rc4 {[%clk 0:00:26]} 0-1


[Site "https://www.chess.com"]

[Event "Titled Tuesday Blitz August 22 Early 2023"]
[White "Leiva, Gianmarco"]
[Black "Arabidze, Meri"]
[WhiteFideId "3804399"]
[BlackFideId "13604040"]
[WhiteElo "2740"]
[BlackElo "2592"]
[Result "1-0"]
[Round "8"]
[TimeControl "180+1"]
[Date "2023.08.22"]
[WhiteClock "0:00:39"]
[BlackClock "0:00:00"]
[Board "51"]

1. e4 {[%clk 0:02:59]}  c5 {[%clk 0:03:00]} 2. Nf3 {[%clk 0:02:59]}  e6 {[%clk 0:03:01]} 3. c3 {[%clk 0:02:59]}  d5 {[%clk 0:03:01]} 4. e5 {[%clk 0:03:00]}  Qb6 {[%clk 0:03:00]} 5. d4 {[%clk 0:02:58]}  Bd7 {[%clk 0:03:00]} 6. Bd3 {[%clk 0:02:50]}  Bb5 {[%clk 0:03:00]} 7. O-O {[%clk 0:02:44]}  Bxd3 {[%clk 0:03:00]} 8. Qxd3 {[%clk 0:02:45]}  Nc6 {[%clk 0:03:00]} 9. a3 {[%clk 0:02:38]}  c4 {[%clk 0:03:00]} 10. Qe2 {[%clk 0:02:32]}  Nge7 {[%clk 0:03:00]} 11. Nh4 {[%clk 0:02:32]}  Na5 {[%clk 0:02:56]} 12. Nd2 {[%clk 0:02:30]}  g6 {[%clk 0:02:55]} 13. f4 {[%clk 0:02:28]}  Nf5 {[%clk 0:02:53]} 14. Nxf5 {[%clk 0:02:26]}  gxf5 {[%clk 0:02:54]} 15. Qh5 {[%clk 0:02:23]}  Qc7 {[%clk 0:02:44]} 16. Nf3 {[%clk 0:02:14]}  Nb3 {[%clk 0:02:39]} 17. Rb1 {[%clk 0:02:13]}  O-O-O {[%clk 0:02:34]} 18. Be3 {[%clk 0:02:14]}  h6 {[%clk 0:02:33]} 19. Bf2 {[%clk 0:02:14]}  Rh7 {[%clk 0:02:03]} 20. Bh4 {[%clk 0:02:12]}  Be7 {[%clk 0:02:02]} 21. Bf6 {[%clk 0:02:12]}  Rg8 {[%clk 0:01:56]} 22. Ng5 {[%clk 0:01:59]}  Bxf6 {[%clk 0:01:39]} 23. Nxh7 {[%clk 0:01:50]}  Bd8 {[%clk 0:01:31]} 24. Rf2 {[%clk 0:01:48]}  Rg6 {[%clk 0:01:25]} 25. Re1 {[%clk 0:01:46]}  Qe7 {[%clk 0:01:08]} 26. Kh1 {[%clk 0:01:42]}  Qh4 {[%clk 0:00:58]} 27. Qxh4 {[%clk 0:01:41]}  Bxh4 {[%clk 0:00:59]} 28. g3 {[%clk 0:01:41]}  Be7 {[%clk 0:00:59]} 29. Kg2 {[%clk 0:01:36]}  Rg7 {[%clk 0:00:51]} 30. Nf6 {[%clk 0:01:36]}  Bxf6 {[%clk 0:00:50]} 31. exf6 {[%clk 0:01:37]}  Rg6 {[%clk 0:00:51]} 32. Kf3 {[%clk 0:01:37]}  Rxf6 {[%clk 0:00:44]} 33. h3 {[%clk 0:01:30]}  h5 {[%clk 0:00:44]} 34. g4 {[%clk 0:01:29]}  fxg4+ {[%clk 0:00:39]} 35. hxg4 {[%clk 0:01:30]}  hxg4+ {[%clk 0:00:40]} 36. Kxg4 {[%clk 0:01:30]}  Rg6+ {[%clk 0:00:41]} 37. Kf3 {[%clk 0:01:31]}  Rh6 {[%clk 0:00:36]} 38. Rg1 {[%clk 0:01:30]}  Kd7 {[%clk 0:00:32]} 39. f5 {[%clk 0:01:28]}  Rf6 {[%clk 0:00:20]} 40. Kg4 {[%clk 0:01:24]}  Ke7 {[%clk 0:00:19]} 41. Kg5 {[%clk 0:01:22]}  a5 {[%clk 0:00:15]} 42. Rh1 {[%clk 0:01:18]}  b5 {[%clk 0:00:07]} 43. Rh8 {[%clk 0:01:18]}  Nc1 {[%clk 0:00:06]} 44. Re8+ {[%clk 0:01:14]}  Kxe8 {[%clk 0:00:06]} 45. Kxf6 {[%clk 0:01:15]}  Nd3 {[%clk 0:00:06]} 46. Re2 {[%clk 0:01:14]}  Kd7 {[%clk 0:00:05]} 47. fxe6+ {[%clk 0:01:12]}  fxe6 {[%clk 0:00:06]} 48. Rxe6 {[%clk 0:00:58]}  Nxb2 {[%clk 0:00:06]} 49. Rb6 {[%clk 0:00:57]}  Nd1 {[%clk 0:00:06]} 50. Rxb5 {[%clk 0:00:53]}  Nxc3 {[%clk 0:00:06]} 51. Rxa5 {[%clk 0:00:53]}  Kd6 {[%clk 0:00:06]} 52. Ra6+ {[%clk 0:00:53]}  Kc7 {[%clk 0:00:06]} 53. Ke5 {[%clk 0:00:51]}  Kb7 {[%clk 0:00:04]} 54. Rh6 {[%clk 0:00:50]}  Kc7 {[%clk 0:00:02]} 55. Rh3 {[%clk 0:00:45]}  Ne2 {[%clk 0:00:02]} 56. Re3 {[%clk 0:00:42]}  Nc1 {[%clk 0:00:02]} 57. Kxd5 {[%clk 0:00:40]}  Kb6 {[%clk 0:00:02]} 58. Kxc4 {[%clk 0:00:40]}  Na2 {[%clk 0:00:00]} 59. Re1 {[%clk 0:00:39]} 1-0


[Site "https://www.chess.com"]

[Event "Titled Tuesday Blitz August 22 Early 2023"]
[White "carokannlover213"]
[Black "Badelka, Olga"]
[BlackFideId "13509926"]
[WhiteElo "2715"]
[BlackElo "2567"]
[Result "0-1"]
[Round "8"]
[TimeControl "180+1"]
[Date "2023.08.22"]
[WhiteClock "0:00:02"]
[BlackClock "0:00:06"]
[Board "52"]

1. e4 {[%clk 0:03:00]}  e5 {[%clk 0:02:59]} 2. Nf3 {[%clk 0:03:01]}  Nc6 {[%clk 0:02:59]} 3. Bb5 {[%clk 0:03:00]}  Nf6 {[%clk 0:02:59]} 4. O-O {[%clk 0:02:59]}  Nxe4 {[%clk 0:02:59]} 5. Re1 {[%clk 0:02:58]}  Nd6 {[%clk 0:02:59]} 6. Nxe5 {[%clk 0:02:59]}  Nxe5 {[%clk 0:02:59]} 7. Rxe5+ {[%clk 0:03:00]}  Be7 {[%clk 0:03:00]} 8. Bf1 {[%clk 0:03:01]}  O-O {[%clk 0:03:00]} 9. d4 {[%clk 0:03:01]}  Bf6 {[%clk 0:03:00]} 10. Re1 {[%clk 0:03:02]}  Re8 {[%clk 0:03:00]} 11. c3 {[%clk 0:03:00]}  Rxe1 {[%clk 0:02:55]} 12. Qxe1 {[%clk 0:03:01]}  Nf5 {[%clk 0:02:50]} 13. d5 {[%clk 0:03:01]}  d6 {[%clk 0:02:50]} 14. Nd2 {[%clk 0:03:00]}  g6 {[%clk 0:02:48]} 15. Ne4 {[%clk 0:03:00]}  Be7 {[%clk 0:02:43]} 16. Bd3 {[%clk 0:02:52]}  Bd7 {[%clk 0:02:41]} 17. Bf4 {[%clk 0:02:50]}  Qf8 {[%clk 0:02:38]} 18. Qd2 {[%clk 0:02:48]}  Re8 {[%clk 0:02:29]} 19. a4 {[%clk 0:02:40]}  Ng7 {[%clk 0:01:56]} 20. Bh6 {[%clk 0:02:33]}  f5 {[%clk 0:01:37]} 21. Ng5 {[%clk 0:01:58]}  Bf6 {[%clk 0:01:35]} 22. a5 {[%clk 0:01:49]}  Qe7 {[%clk 0:01:25]} 23. Nf3 {[%clk 0:01:36]}  a6 {[%clk 0:01:12]} 24. Rc1 {[%clk 0:01:32]}  Nh5 {[%clk 0:00:55]} 25. b4 {[%clk 0:01:30]}  Bg7 {[%clk 0:00:48]} 26. Bg5 {[%clk 0:01:30]}  Bf6 {[%clk 0:00:46]} 27. Bh6 {[%clk 0:01:30]}  Bg7 {[%clk 0:00:46]} 28. Bxg7 {[%clk 0:01:31]}  Qxg7 {[%clk 0:00:44]} 29. c4 {[%clk 0:01:31]}  f4 {[%clk 0:00:35]} 30. h3 {[%clk 0:01:27]}  g5 {[%clk 0:00:32]} 31. Nh2 {[%clk 0:01:15]}  Nf6 {[%clk 0:00:31]} 32. Qb2 {[%clk 0:00:40]}  Ne4 {[%clk 0:00:29]} 33. Qxg7+ {[%clk 0:00:38]}  Kxg7 {[%clk 0:00:30]} 34. Nf3 {[%clk 0:00:34]}  h6 {[%clk 0:00:27]} 35. Nd4 {[%clk 0:00:31]}  Kf6 {[%clk 0:00:25]} 36. c5 {[%clk 0:00:14]}  Ke5 {[%clk 0:00:24]} 37. Nf3+ {[%clk 0:00:06]}  Kf6 {[%clk 0:00:24]} 38. Bxe4 {[%clk 0:00:04]}  Rxe4 {[%clk 0:00:24]} 39. cxd6 {[%clk 0:00:05]}  cxd6 {[%clk 0:00:24]} 40. Rc7 {[%clk 0:00:06]}  Bb5 {[%clk 0:00:23]} 41. Rxb7 {[%clk 0:00:06]}  Rxb4 {[%clk 0:00:23]} 42. Rb6 {[%clk 0:00:07]}  Ke7 {[%clk 0:00:19]} 43. Nd2 {[%clk 0:00:05]}  Ra4 {[%clk 0:00:19]} 44. Kh2 {[%clk 0:00:04]}  Rxa5 {[%clk 0:00:19]} 45. Ne4 {[%clk 0:00:04]}  Ra2 {[%clk 0:00:18]} 46. h4 {[%clk 0:00:03]}  g4 {[%clk 0:00:18]} 47. Rb7+ {[%clk 0:00:03]}  Kd8 {[%clk 0:00:17]} 48. Nxd6 {[%clk 0:00:03]}  Rxf2 {[%clk 0:00:16]} 49. Nxb5 {[%clk 0:00:01]}  axb5 {[%clk 0:00:16]} 50. Kg1 {[%clk 0:00:01]}  Rb2 {[%clk 0:00:14]} 51. d6 {[%clk 0:00:01]}  g3 {[%clk 0:00:14]} 52. Kf1 {[%clk 0:00:01]}  Rf2+ {[%clk 0:00:13]} 53. Kg1 {[%clk 0:00:01]}  Rb2 {[%clk 0:00:13]} 54. Kf1 {[%clk 0:00:02]}  b4 {[%clk 0:00:14]} 55. h5 {[%clk 0:00:03]}  b3 {[%clk 0:00:14]} 56. Ke1 {[%clk 0:00:02]}  Rxg2 {[%clk 0:00:14]} 57. Rxb3 {[%clk 0:00:02]}  Rh2 {[%clk 0:00:13]} 58. Kf1 {[%clk 0:00:02]}  Rxh5 {[%clk 0:00:11]} 59. Rf3 {[%clk 0:00:02]}  Rf5 {[%clk 0:00:12]} 60. Kg2 {[%clk 0:00:03]}  Kd7 {[%clk 0:00:12]} 61. Rd3 {[%clk 0:00:02]}  h5 {[%clk 0:00:11]} 62. Kf3 {[%clk 0:00:02]}  h4 {[%clk 0:00:11]} 63. Rd1 {[%clk 0:00:03]}  h3 {[%clk 0:00:11]} 64. Kg4 {[%clk 0:00:03]}  h2 {[%clk 0:00:10]} 65. Kf3 {[%clk 0:00:03]}  Rf6 {[%clk 0:00:09]} 66. Rh1 {[%clk 0:00:02]}  Rxd6 {[%clk 0:00:09]} 67. Rb1 {[%clk 0:00:01]}  Rd4 {[%clk 0:00:08]} 68. Rc1 {[%clk 0:00:01]}  Ke6 {[%clk 0:00:08]} 69. Ra1 {[%clk 0:00:01]}  Ke5 {[%clk 0:00:09]} 70. Ra5+ {[%clk 0:00:02]}  Rd5 {[%clk 0:00:09]} 71. Ra1 {[%clk 0:00:02]}  Rd3+ {[%clk 0:00:09]} 72. Kg2 {[%clk 0:00:03]}  Kf5 {[%clk 0:00:09]} 73. Kh1 {[%clk 0:00:02]}  Kg4 {[%clk 0:00:08]} 74. Rb1 {[%clk 0:00:02]}  Rc3 {[%clk 0:00:08]} 75. Rf1 {[%clk 0:00:02]}  Kh3 {[%clk 0:00:07]} 76. Rf2 {[%clk 0:00:01]}  Rc1+ {[%clk 0:00:06]} 77. Rf1 {[%clk 0:00:02]}  Rxf1# {[%clk 0:00:06]} 0-1


[Site "https://www.chess.com"]

[Event "Titled Tuesday Blitz August 22 Early 2023"]
[White "Zhao, Jun"]
[Black "Postlmayer, Jakob"]
[WhiteFideId "8602522"]
[BlackFideId "1643622"]
[WhiteElo "2701"]
[BlackElo "2565"]
[Result "1-0"]
[Round "8"]
[TimeControl "180+1"]
[Date "2023.08.22"]
[WhiteClock "0:01:59"]
[BlackClock "0:00:09"]
[Board "54"]

1. e4 {[%clk 0:02:51]}  c5 {[%clk 0:02:59]} 2. Nf3 {[%clk 0:02:51]}  d6 {[%clk 0:02:59]} 3. d4 {[%clk 0:02:52]}  cxd4 {[%clk 0:03:00]} 4. Nxd4 {[%clk 0:02:53]}  Nf6 {[%clk 0:03:00]} 5. Nc3 {[%clk 0:02:53]}  a6 {[%clk 0:03:01]} 6. Bg5 {[%clk 0:02:53]}  e6 {[%clk 0:03:00]} 7. Qe2 {[%clk 0:02:51]}  Be7 {[%clk 0:02:58]} 8. h4 {[%clk 0:02:51]}  h6 {[%clk 0:02:55]} 9. Bd2 {[%clk 0:02:51]}  b5 {[%clk 0:02:52]} 10. a3 {[%clk 0:02:49]}  Bb7 {[%clk 0:02:51]} 11. O-O-O {[%clk 0:02:49]}  Nbd7 {[%clk 0:02:50]} 12. g4 {[%clk 0:02:42]}  Ne5 {[%clk 0:02:43]} 13. Rg1 {[%clk 0:02:39]}  Rc8 {[%clk 0:02:27]} 14. g5 {[%clk 0:02:38]}  hxg5 {[%clk 0:02:26]} 15. hxg5 {[%clk 0:02:39]}  Nfd7 {[%clk 0:02:25]} 16. g6 {[%clk 0:02:39]}  Nxg6 {[%clk 0:02:13]} 17. Rxg6 {[%clk 0:02:34]}  fxg6 {[%clk 0:02:11]} 18. Nxe6 {[%clk 0:02:35]}  Qb6 {[%clk 0:02:09]} 19. Nd5 {[%clk 0:02:34]}  Bxd5 {[%clk 0:02:07]} 20. exd5 {[%clk 0:02:34]}  Nf8 {[%clk 0:01:57]} 21. Nxg7+ {[%clk 0:02:30]}  Kf7 {[%clk 0:01:51]} 22. Ne6 {[%clk 0:02:26]}  Bf6 {[%clk 0:01:47]} 23. Qe4 {[%clk 0:02:24]}  Rh4 {[%clk 0:01:22]} 24. f4 {[%clk 0:02:23]}  Re8 {[%clk 0:01:14]} 25. Bd3 {[%clk 0:02:21]}  Rh6 {[%clk 0:01:10]} 26. f5 {[%clk 0:02:18]}  gxf5 {[%clk 0:01:06]} 27. Qxf5 {[%clk 0:02:16]}  Rg6 {[%clk 0:01:00]} 28. Rf1 {[%clk 0:02:11]}  Rxe6 {[%clk 0:00:52]} 29. dxe6+ {[%clk 0:02:11]}  Ke7 {[%clk 0:00:45]} 30. Bc3 {[%clk 0:02:08]}  Qe3+ {[%clk 0:00:36]} 31. Kb1 {[%clk 0:02:08]}  Qg5 {[%clk 0:00:35]} 32. Qxg5 {[%clk 0:02:05]}  Bxg5 {[%clk 0:00:34]} 33. Bxg6 {[%clk 0:01:59]}  Nxg6 {[%clk 0:00:09]} 34. Rg1 {[%clk 0:01:59]} 1-0


[Site "https://www.chess.com"]

[Event "Titled Tuesday Blitz August 22 Early 2023"]
[White "Moral Garcia, Serafin"]
[Black "Skliarov, Viktor"]
[WhiteFideId "2201925"]
[BlackFideId "14106736"]
[WhiteElo "2553"]
[BlackElo "2697"]
[Result "1-0"]
[Round "8"]
[TimeControl "180+1"]
[Date "2023.08.22"]
[WhiteClock "0:00:16"]
[BlackClock "0:00:04"]
[Board "55"]

1. e4 {[%clk 0:03:00]}  c5 {[%clk 0:02:59]} 2. Nf3 {[%clk 0:03:00]}  Nc6 {[%clk 0:03:00]} 3. Bb5 {[%clk 0:02:59]}  e6 {[%clk 0:03:00]} 4. O-O {[%clk 0:02:59]}  Nge7 {[%clk 0:03:00]} 5. Re1 {[%clk 0:03:00]}  Nd4 {[%clk 0:03:01]} 6. Bf1 {[%clk 0:03:00]}  Nec6 {[%clk 0:03:00]} 7. c3 {[%clk 0:02:55]}  Nxf3+ {[%clk 0:03:00]} 8. Qxf3 {[%clk 0:02:55]}  Be7 {[%clk 0:03:00]} 9. Na3 {[%clk 0:02:39]}  O-O {[%clk 0:02:58]} 10. Nc2 {[%clk 0:02:37]}  b6 {[%clk 0:02:49]} 11. d4 {[%clk 0:02:34]}  cxd4 {[%clk 0:02:49]} 12. cxd4 {[%clk 0:02:33]}  Bb7 {[%clk 0:02:40]} 13. Bd3 {[%clk 0:02:30]}  Nb4 {[%clk 0:02:36]} 14. Nxb4 {[%clk 0:02:27]}  Bxb4 {[%clk 0:02:37]} 15. Re2 {[%clk 0:02:28]}  f5 {[%clk 0:02:05]} 16. Bf4 {[%clk 0:02:20]}  fxe4 {[%clk 0:01:42]} 17. Bxe4 {[%clk 0:02:19]}  Bxe4 {[%clk 0:01:42]} 18. Qxe4 {[%clk 0:02:18]}  Qf6 {[%clk 0:01:16]} 19. Be5 {[%clk 0:02:16]}  Qf5 {[%clk 0:01:16]} 20. Qxf5 {[%clk 0:02:02]}  Rxf5 {[%clk 0:01:15]} 21. Rc1 {[%clk 0:02:02]}  Rf7 {[%clk 0:00:46]} 22. a3 {[%clk 0:01:47]}  Bf8 {[%clk 0:00:45]} 23. Bg3 {[%clk 0:01:42]}  h6 {[%clk 0:00:39]} 24. Rc7 {[%clk 0:01:41]}  a6 {[%clk 0:00:36]} 25. h3 {[%clk 0:01:33]}  b5 {[%clk 0:00:35]} 26. Rec2 {[%clk 0:01:28]}  Kh7 {[%clk 0:00:32]} 27. Rb7 {[%clk 0:01:26]}  g5 {[%clk 0:00:23]} 28. Rcc7 {[%clk 0:01:23]}  Rd8 {[%clk 0:00:23]} 29. Be5 {[%clk 0:01:21]}  Kg6 {[%clk 0:00:22]} 30. Ra7 {[%clk 0:01:17]}  h5 {[%clk 0:00:19]} 31. Rxa6 {[%clk 0:01:09]}  d6 {[%clk 0:00:19]} 32. Rxf7 {[%clk 0:01:09]}  Kxf7 {[%clk 0:00:20]} 33. Bg3 {[%clk 0:01:04]}  d5 {[%clk 0:00:19]} 34. Rb6 {[%clk 0:00:59]}  h4 {[%clk 0:00:19]} 35. Be5 {[%clk 0:00:58]}  Rc8 {[%clk 0:00:19]} 36. Rxb5 {[%clk 0:00:55]}  Rc1+ {[%clk 0:00:19]} 37. Kh2 {[%clk 0:00:55]}  Rc2 {[%clk 0:00:20]} 38. f3 {[%clk 0:00:54]}  Kg6 {[%clk 0:00:16]} 39. a4 {[%clk 0:00:53]}  Rc1 {[%clk 0:00:15]} 40. a5 {[%clk 0:00:50]}  Ra1 {[%clk 0:00:15]} 41. Rb8 {[%clk 0:00:34]}  Be7 {[%clk 0:00:15]} 42. b4 {[%clk 0:00:34]}  Ra4 {[%clk 0:00:14]} 43. Rb7 {[%clk 0:00:25]}  Bxb4 {[%clk 0:00:12]} 44. a6 {[%clk 0:00:26]}  Bd2 {[%clk 0:00:10]} 45. a7 {[%clk 0:00:25]}  Ra1 {[%clk 0:00:08]} 46. Bd6 {[%clk 0:00:19]}  Be3 {[%clk 0:00:08]} 47. g4 {[%clk 0:00:17]}  Ra2+ {[%clk 0:00:06]} 48. Kh1 {[%clk 0:00:16]}  Ra1+ {[%clk 0:00:04]} 49. Kg2 {[%clk 0:00:15]}  Rg1+ {[%clk 0:00:04]} 50. Kh2 {[%clk 0:00:15]}  Ra1 {[%clk 0:00:04]} 51. Bc5 {[%clk 0:00:14]}  Ra2+ {[%clk 0:00:04]} 52. Kh1 {[%clk 0:00:15]}  Ra1+ {[%clk 0:00:04]} 53. Kg2 {[%clk 0:00:15]}  Rg1+ {[%clk 0:00:03]} 54. Kh2 {[%clk 0:00:15]}  Ra1 {[%clk 0:00:04]} 55. Rb8 {[%clk 0:00:15]}  Bf4+ {[%clk 0:00:04]} 56. Kg2 {[%clk 0:00:16]}  Ra2+ {[%clk 0:00:04]} 57. Kf1 {[%clk 0:00:15]}  Rxa7 {[%clk 0:00:04]} 58. Bxa7 {[%clk 0:00:15]}  Bxb8 {[%clk 0:00:04]} 59. Bxb8 {[%clk 0:00:16]}  Kf7 {[%clk 0:00:04]} 60. Ke2 {[%clk 0:00:16]} 1-0


[Site "https://www.chess.com"]